bitfinex/quotes_SOLUSD_20250413
["timestamp","ask_amount","ask_price","bid_price","bid_amount"]
[1744525290327,8.96786913,129.35,129.29,7.7345]
[1744525290328,8.96786913,129.33,129.29,7.7345]
[1744525290511,8.96786913,129.34,129.29,16.70236913]
[1744525293437,8.96786913,129.31,129.28,8.5512]
[1744525293631,8.96786913,129.29,129.28,0.03]
[1744525293838,8.96786913,129.3,129.28,0.03]
[1744525295643,8.96786913,129.31,129.28,0.03]
[1744525295937,8.96786913,129.33,129.28,8.99786913]
[1744525297043,8.96786913,129.33,129.29,7.7345]
[1744525298419,16.69966913,129.34,129.29,16.70236913]
[1744525298625,8.96786913,129.33,129.29,7.7345]
[1744525298944,8.96786913,129.34,129.29,23.13566913]
[1744525299315,8.96786913,129.35,129.3,8.96786913]
[1744525299524,8.96786913,129.37,129.32,8.96786913]
[1744525300622,8.96786913,129.33,129.3,1.5467]
[1744525300824,8.96786913,129.33,129.29,14.1678]
[1744525303448,8.96786913,129.34,129.29,23.13566913]
[1744525304643,8.96786913,129.35,129.29,23.13566913]
[1744525305042,8.96786913,129.34,129.29,23.13566913]
[1744525308344,7.7305,129.36,129.29,23.13566913]
[1744525308545,8.96786913,129.35,129.29,23.13566913]
[1744525310240,8.96786913,129.35,129.3,8.96786913]
[1744525310444,8.96786913,129.36,129.31,8.96786913]
[1744525310654,8.96786913,129.37,129.32,8.96786913]
[1744525311324,8.96786913,129.38,129.32,10.52496913]
[1744525311846,8.96786913,129.38,129.33,8.96786913]
[1744525312850,8.96786913,129.38,129.34,7.7315]
[1744525314744,89.96786913,129.39,129.34,16.69936913]
[1744525315248,9.03086913,129.4,129.35,8.96786913]
[1744525315434,0.063,129.4,129.36,8.96786913]
[1744525315639,0.063,129.4,129.39,8.96786913]
[1744525316332,0.063,129.4,129.38,8.96786913]
[1744525316741,0.063,129.4,129.39,7.7285]
[1744525317846,0.063,129.4,129.39,16.69636913]
[1744525321040,0.063,129.4,129.39,35.7725027]
[1744525323846,0.063,129.43,129.42,46.70183357]
[1744525324152,0.063,129.46,129.42,62.6897027]
[1744525324446,0.063,129.46,129.45,8.96786913]
[1744525324852,0.063,129.46,129.45,28.0440027]
[1744525325032,0.063,129.46,129.45,34.1989027]
[1744525325227,0.063,129.46,129.45,39.21712199]
[1744525325428,0.063,129.47,129.45,40.74212199]
[1744525325647,0.063,129.47,129.46,40.78652199]
[1744525325844,0.0001,129.47,129.46,40.78652199]
[1744525326345,0.0001,129.48,129.47,33.06222199]
[1744525326540,0.0001,129.48,129.47,40.08222199]
[1744525327654,0.0001,129.48,129.47,47.80592199]
[1744525328348,0.063,129.5,129.49,26.0]
[1744525328649,0.0001,129.51,129.5,25.23103357]
[1744525328952,0.0001,129.51,129.5,39.21712199]
[1744525329150,0.063,129.54,129.53,26.0]
[1744525329337,0.063,129.54,129.53,66.08222199]
[1744525329737,0.063,129.54,129.53,73.80242199]
[1744525333251,0.063,129.54,129.53,7.02]
[1744525333451,0.063,129.54,129.51,7.7212]
[1744525333658,0.063,129.54,129.51,21.70728842]
[1744525334155,0.063,129.54,129.53,13.98608842]
[1744525335154,0.063,129.54,129.53,21.70628842]
[1744525335957,0.063,129.54,129.53,47.70628842]
[1744525337958,0.063,129.54,129.53,66.78242199]
[1744525341853,0.063,129.54,129.53,26.0]
[1744525342040,0.063,129.54,129.5,21.70808842]
[1744525342863,14.04908842,129.54,129.49,28.72848842]
[1744525343048,13.98608842,129.52,129.47,14.04908842]
[1744525343243,13.98608842,129.52,129.48,7.723]
[1744525346146,21.70628842,129.53,129.48,13.98608842]
[1744525346348,13.98608842,129.53,129.48,13.98608842]
[1744525346680,14.04908842,129.54,129.49,13.98608842]
[1744525348060,21.76868842,129.54,129.49,13.98608842]
[1744525348562,13.98608842,129.51,129.47,7.7865]
[1744525348873,13.98608842,129.51,129.47,21.77258842]
[1744525349055,13.98608842,129.51,129.47,7.7865]
[1744525349256,13.98608842,129.51,129.47,21.77258842]
[1744525350268,13.98608842,129.51,129.47,14.04908842]
[1744525350469,15.56048842,129.49,129.47,0.063]
[1744525350652,13.98608842,129.48,129.47,0.063]
[1744525350855,1.5744,129.49,129.47,0.063]
[1744525351053,1.5744,129.52,129.47,14.04908842]
[1744525351260,15.56048842,129.52,129.48,13.98608842]
[1744525351465,1.5744,129.52,129.48,13.98608842]
[1744525351852,15.56048842,129.52,129.48,13.98608842]
[1744525352267,1.5744,129.52,129.48,21.70908842]
[1744525356175,15.56048842,129.52,129.48,21.70908842]
[1744525356750,23.28128842,129.52,129.48,13.98608842]
[1744525356954,23.28128842,129.52,129.47,21.77258842]
[1744525359476,15.56048842,129.52,129.47,21.77258842]
[1744525359654,1.5744,129.52,129.48,13.98608842]
[1744525359856,15.56048842,129.52,129.47,21.77258842]
[1744525361587,1.5744,129.52,129.48,13.98608842]
[1744525362557,23.28128842,129.52,129.47,14.04908842]
[1744525363577,23.28128842,129.52,129.47,0.063]
[1744525363781,13.98608842,129.48,129.47,0.063]
[1744525366185,21.70928842,129.48,129.47,0.063]
[1744525367570,13.98608842,129.49,129.47,0.063]
[1744525368071,13.98608842,129.48,129.47,0.063]
[1744525369288,21.70808842,129.5,129.47,0.063]
[1744525369479,13.98608842,129.49,129.47,0.063]
[1744525370390,21.70868842,129.49,129.47,0.063]
[1744525373492,13.98608842,129.49,129.47,0.063]
[1744525376379,21.70868842,129.49,129.47,0.063]
[1744525377901,13.98608842,129.49,129.47,0.063]
[1744525378801,21.70868842,129.49,129.47,0.063]
[1744525379302,13.98608842,129.49,129.47,0.063]
[1744525379906,7.7216,129.51,129.47,0.063]
[1744525380299,13.98608842,129.5,129.47,0.063]
[1744525380886,13.98608842,129.49,129.47,0.063]
[1744525381308,8.95729492,129.49,129.47,0.063]
[1744525382096,16.68019492,129.49,129.47,0.063]
[1744525382414,8.95729492,129.48,129.47,0.063]
[1744525384611,16.68049492,129.48,129.47,0.063]
[1744525386631,8.95729492,129.48,129.47,0.063]
[1744525387615,8.95729492,129.5,129.47,0.063]
[1744525388909,90.2954,129.52,129.47,0.063]
[1744525389126,8.95729492,129.51,129.47,0.063]
[1744525389302,8.95729492,129.5,129.47,0.063]
[1744525390807,8.95729492,129.49,129.47,0.063]
[1744525391687,16.67999492,129.49,129.47,0.063]
[1744525391886,115.36732849,129.48,129.47,0.063]
[1744525392091,26.0,129.44,129.41,0.063]
[1744525392309,8.95729492,129.42,129.41,0.063]
[1744525393012,16.68399492,129.42,129.41,0.063]
[1744525393310,21.74078137,129.42,129.41,0.063]
[1744525396408,14.01408137,129.42,129.41,0.063]
[1744525396793,21.74078137,129.42,129.41,0.063]
[1744525397198,7.7267,129.42,129.41,0.063]
[1744525397619,21.74078137,129.42,129.41,0.063]
[1744525398518,42.35051494,129.42,129.41,0.063]
[1744525399598,23.27438137,129.42,129.41,0.063]
[1744525400010,21.74078137,129.42,129.41,0.063]
[1744525400198,14.01408137,129.42,129.41,0.063]
[1744525402434,40.81691494,129.42,129.41,0.063]
[1744525407124,88.7262,129.43,129.41,0.063]
[1744525407330,14.01408137,129.42,129.41,0.063]
[1744525409228,21.74078137,129.42,129.41,0.063]
[1744525410929,40.81691494,129.42,129.41,0.063]
[1744525412130,21.74078137,129.42,129.41,0.063]
[1744525414640,14.01408137,129.42,129.41,0.063]
[1744525415112,21.74078137,129.42,129.41,0.063]
[1744525419149,14.01408137,129.42,129.41,0.063]
[1744525419327,95.01408137,129.43,129.41,0.063]
[1744525419646,14.01408137,129.42,129.41,0.063]
[1744525423239,8.96732093,129.42,129.41,0.063]
[1744525425046,89.96732093,129.43,129.41,0.063]
[1744525425550,8.96732093,129.44,129.41,0.063]
[1744525425719,8.96732093,129.43,129.41,0.063]
[1744525428456,8.96732093,129.42,129.41,0.063]
[1744525429630,16.69402093,129.42,129.41,0.063]
[1744525431859,7.7267,129.42,129.41,0.063]
[1744525432060,16.69402093,129.42,129.41,0.063]
[1744525432751,35.7701545,129.42,129.41,0.063]
[1744525435856,16.69402093,129.42,129.41,0.063]
[1744525436543,7.7267,129.42,129.41,0.063]
[1744525436859,16.69402093,129.42,129.41,0.063]
[1744525437359,21.74156374,129.42,129.41,0.063]
[1744525440256,14.01486374,129.42,129.41,0.063]
[1744525441454,7.7257,129.44,129.41,0.063]
[1744525441674,14.01486374,129.44,129.41,0.063]
[1744525442653,95.01486374,129.45,129.41,0.063]
[1744525443357,81.0,129.45,129.41,0.063]
[1744525443843,81.0,129.45,129.42,14.01486374]
[1744525444046,7.7228,129.49,129.43,14.01486374]
[1744525444258,14.01486374,129.47,129.42,20.08786374]
[1744525444452,14.01486374,129.47,129.43,7.7261]
[1744525444654,14.01486374,129.45,129.42,6.073]
[1744525445061,14.01486374,129.46,129.42,6.073]
[1744525445953,14.01486374,129.45,129.42,6.073]
[1744525446151,14.01486374,129.43,129.41,0.063]
[1744525446356,14.01486374,129.42,129.41,0.063]
[1744525448471,21.74156374,129.42,129.41,0.063]
[1744525449473,40.81769731,129.42,129.41,0.063]
[1744525450075,19.07613357,129.41,129.4,0.063]
[1744525450367,33.09099731,129.41,129.4,0.0001]
[1744525450571,40.81829731,129.41,129.4,0.0001]
[1744525455978,63.99829731,129.41,129.4,0.0001]
[1744525456163,40.81829731,129.41,129.4,0.0001]
[1744525459179,21.74216374,129.41,129.4,0.0001]
[1744525464979,21.74216374,129.41,129.34,20.83946374]
[1744525465281,14.01486374,129.38,129.33,13.8049]
[1744525466173,21.74446374,129.38,129.33,13.8049]
[1744525466574,14.01486374,129.37,129.33,13.8049]
[1744525468080,21.74446374,129.38,129.33,13.8049]
[1744525468581,21.74446374,129.38,129.33,27.81976374]
[1744525469254,8.9731015,129.38,129.33,22.7780015]
[1744525470287,27.0457,129.41,129.33,22.7780015]
[1744525470583,27.0457,129.41,129.34,16.7041015]
[1744525470884,8.9731015,129.39,129.34,16.7041015]
[1744525471388,8.9731015,129.4,129.35,8.9731015]
[1744525471685,8.9731015,129.4,129.34,16.7041015]
[1744525472486,16.7013015,129.4,129.34,16.7041015]
[1744525474191,8.9731015,129.39,129.34,16.7041015]
[1744525474980,7.7275,129.41,129.34,16.7041015]
[1744525475285,81.0,129.42,129.36,8.9731015]
[1744525475583,8.9731015,129.42,129.36,8.9731015]
[1744525475761,8.9731015,129.41,129.36,8.9731015]
[1744525475958,8.9731015,129.4,129.35,8.9731015]
[1744525476265,8.9731015,129.38,129.34,7.731]
[1744525476673,8.9731015,129.39,129.34,7.731]
[1744525476869,8.9731015,129.4,129.35,8.9731015]
[1744525477073,16.7007015,129.41,129.36,8.9731015]
[1744525477886,16.7007015,129.41,129.36,16.7029015]
[1744525478089,8.9731015,129.41,129.36,16.7029015]
[1744525479181,8.9731015,129.41,129.36,7.7298]
[1744525479389,8.9731015,129.39,129.34,15.9931015]
[1744525479567,8.9731015,129.38,129.34,7.02]
[1744525480087,8.9731015,129.39,129.34,14.7514]
[1744525480290,8.9731015,129.39,129.34,23.7245015]
[1744525482089,16.7010015,129.4,129.34,16.7045015]
[1744525482391,8.9731015,129.41,129.36,8.9731015]
[1744525482987,95.7464,129.43,129.37,1.5381]
[1744525483189,89.9731015,129.43,129.38,8.9731015]
[1744525483489,8.9731015,129.44,129.4,7.7279]
[1744525483680,8.9731015,129.45,129.4,7.7279]
[1744525483991,7.7875,129.46,129.4,16.7010015]
[1744525484206,8.9731015,129.45,129.4,16.7010015]
[1744525484691,8.9731015,129.44,129.39,16.7014015]
[1744525486288,16.6988015,129.44,129.39,16.7014015]
[1744525486790,16.6988015,129.44,129.39,7.7283]
[1744525486975,8.9731015,129.43,129.39,16.7014015]
[1744525487177,8.9731015,129.44,129.39,16.7014015]
[1744525489087,16.6987015,129.44,129.39,16.7014015]
[1744525490194,8.9731015,129.44,129.39,16.7014015]
[1744525490996,16.6988015,129.44,129.39,16.7014015]
[1744525491492,16.6988015,129.44,129.39,8.9731015]
[1744525491708,8.9731015,129.42,129.38,6.4774]
[1744525491890,8.9731015,129.4,129.37,1.5381]
[1744525492094,8.9731015,129.4,129.35,15.5378015]
[1744525492695,16.7012015,129.4,129.35,23.2687015]
[1744525494700,8.9731015,129.4,129.35,23.2687015]
[1744525496301,16.7011015,129.4,129.35,23.2687015]
[1744525498397,8.9731015,129.4,129.35,23.2687015]
[1744525498699,16.7005015,129.41,129.35,23.2687015]
[1744525499903,16.7005015,129.41,129.35,14.2956]
[1744525500090,8.9731015,129.4,129.35,23.2687015]
[1744525500289,8.9731015,129.39,129.35,6.5647]
[1744525500493,8.9731015,129.39,129.35,14.2954]
[1744525501001,16.6994015,129.43,129.38,8.9731015]
[1744525501180,16.6989015,129.44,129.38,8.9731015]
[1744525501678,8.9731015,129.44,129.39,8.9731015]
[1744525501879,88.7252,129.45,129.38,34.9731015]
[1744525502097,8.9731015,129.44,129.39,18.2295015]
[1744525503307,8.9731015,129.44,129.39,9.2564]
[1744525504290,8.9731015,129.44,129.39,18.2295015]
[1744525505002,89.9731015,129.45,129.4,8.9731015]
[1744525505209,0.063,129.46,129.42,8.9731015]
[1744525505582,0.063,129.46,129.43,8.9731015]
[1744525505916,0.063,129.46,129.45,8.9731015]
[1744525506407,0.063,129.46,129.44,8.9731015]
[1744525507276,0.063,129.46,129.45,7.7249]
[1744525507699,0.063,129.46,129.44,13.99608629]
[1744525508093,0.063,129.46,129.45,13.99608629]
[1744525508295,0.063,129.46,129.45,20.18598629]
[1744525508802,0.063,129.46,129.45,39.26211986]
[1744525509305,0.063,129.46,129.45,46.98701986]
[1744525510086,0.063,129.46,129.45,13.9148]
[1744525510288,0.063,129.46,129.45,27.91088629]
[1744525511119,0.063,129.46,129.45,6.1899]
[1744525511291,0.063,129.46,129.45,20.18598629]
[1744525513103,0.063,129.46,129.45,27.91088629]
[1744525513412,0.063,129.46,129.45,20.18598629]
[1744525514913,0.063,129.46,129.42,20.07798629]
[1744525515813,7.7873,129.46,129.42,20.07798629]
[1744525519922,0.063,129.46,129.42,27.80468629]
[1744525520112,0.063,129.46,129.43,13.99608629]
[1744525520412,0.063,129.46,129.44,13.99608629]
[1744525522617,0.063,129.46,129.44,21.72158629]
[1744525523327,0.063,129.46,129.44,13.99608629]
[1744525527428,0.063,129.46,129.43,16.68463969]
[1744525527819,0.063,129.46,129.44,8.95863969]
[1744525532127,0.063,129.46,129.43,16.68463969]
[1744525532438,0.063,129.46,129.43,8.95863969]
[1744525532741,0.063,129.46,129.31,7.7416]
[1744525532742,26.0,129.41,129.31,7.7416]
[1744525532906,8.95863969,129.34,129.29,24.00456587]
[1744525533220,8.95863969,129.31,129.29,24.00456587]
[1744525533534,6.4427,129.38,129.29,24.00456587]
[1744525533535,8.95863969,129.34,129.29,24.00456587]
[1744525534232,8.95863969,129.33,129.29,24.00456587]
[1744525535336,8.95863969,129.33,129.28,23.72333969]
[1744525535337,14.02931162,129.33,129.28,28.79401162]
[1744525535923,14.02931162,129.33,129.29,18.79181043]
[1744525536115,14.02931162,129.34,129.29,18.79181043]
[1744525536519,14.02931162,129.34,129.29,26.52621043]
[1744525538225,14.02931162,129.33,129.29,26.52621043]
[1744525539624,14.02931162,129.32,129.28,0.03]
[1744525539830,14.02931162,129.29,129.28,0.03]
[1744525540615,14.02931162,129.3,129.28,0.03]
[1744525541021,14.02931162,129.31,129.28,0.03]
[1744525541717,7.7316,129.34,129.28,0.03]
[1744525542040,14.02931162,129.32,129.28,0.03]
[1744525542717,14.02931162,129.33,129.28,0.03]
[1744525543214,14.02931162,129.32,129.28,0.03]
[1744525543730,14.02931162,129.32,129.28,7.7651]
[1744525547442,88.02,129.37,129.28,21.79441162]
[1744525547443,14.02931162,129.33,129.28,21.79441162]
[1744525547943,88.02,129.37,129.28,21.79441162]
[1744525548240,14.02931162,129.33,129.28,21.79441162]
[1744525549347,81.0,129.37,129.3,14.02931162]
[1744525549527,14.02931162,129.35,129.3,14.02931162]
[1744525549730,14.02931162,129.34,129.29,33.10544519]
[1744525550047,14.02931162,129.35,129.3,20.25611162]
[1744525550344,14.02931162,129.36,129.31,14.02931162]
[1744525551215,8.5721,129.4,129.32,21.76201162]
[1744525551417,14.02931162,129.36,129.32,7.7327]
[1744525551616,7.7287,129.39,129.32,7.7327]
[1744525551818,14.02931162,129.36,129.32,7.7327]
[1744525553330,14.02931162,129.37,129.32,21.76201162]
[1744525554149,7.7287,129.39,129.32,21.76201162]
[1744525554322,14.02931162,129.37,129.32,21.76201162]
[1744525555347,1.5817,129.43,129.34,14.02931162]
[1744525555648,14.02931162,129.4,129.35,1.5756]
[1744525556023,14.02931162,129.37,129.32,28.78201162]
[1744525556214,14.02931162,129.36,129.32,14.7527]
[1744525556417,14.02931162,129.35,129.32,7.7327]
[1744525556622,46.12023357,129.42,129.29,7.7345]
[1744525556623,14.02931162,129.33,129.29,7.7345]
[1744525556830,14.02931162,129.31,129.29,7.7345]
[1744525557042,14.02931162,129.32,129.29,7.7345]
[1744525557846,14.02931162,129.33,129.29,7.7345]
[1744525558245,9.3115,129.37,129.29,7.7345]
[1744525558452,14.02931162,129.34,129.29,21.76381162]
[1744525558950,14.02931162,129.33,129.29,7.7345]
[1744525559444,26.0,129.38,129.3,19.07613357]
[1744525559739,14.02931162,129.36,129.31,21.04931162]
[1744525560140,14.02931162,129.37,129.32,14.02931162]
[1744525560340,0.14216157,129.37,129.29,7.7345]
[1744525560527,14.02931162,129.32,129.29,7.7345]
[1744525560949,14.02931162,129.33,129.29,7.7345]
[1744525561249,14.02931162,129.32,129.29,7.7345]
[1744525561550,21.76001162,129.36,129.29,7.7345]
[1744525561730,14.02931162,129.32,129.29,7.7345]
[1744525564653,14.02931162,129.33,129.29,7.7345]
[1744525564838,14.02931162,129.34,129.29,7.7345]
[1744525565027,14.02931162,129.33,129.29,7.7345]
[1744525565452,14.02931162,129.36,129.31,14.02931162]
[1744525565748,14.02931162,129.36,129.32,7.7327]
[1744525566247,14.02931162,129.33,129.28,0.03]
[1744525566426,14.02931162,129.32,129.28,0.03]
[1744525567347,14.02931162,129.31,129.28,7.7649]
[1744525567528,14.02931162,129.32,129.28,7.7649]
[1744525569256,14.02931162,129.32,129.28,0.03]
[1744525569554,14.02931162,129.31,129.28,0.03]
[1744525569850,14.02931162,129.3,129.28,0.03]
[1744525570231,14.02931162,129.31,129.28,0.03]
[1744525570544,14.02931162,129.3,129.28,0.03]
[1744525570941,14.02931162,129.31,129.28,0.03]
[1744525571729,14.02931162,129.3,129.28,0.03]
[1744525574053,14.02931162,129.31,129.28,0.03]
[1744525574434,14.02931162,129.29,129.28,0.03]
[1744525574842,14.02931162,129.3,129.28,0.03]
[1744525576453,14.02931162,129.31,129.28,0.03]
[1744525576833,7.7317,129.34,129.28,0.03]
[1744525577049,14.02931162,129.3,129.28,0.03]
[1744525577250,7.7317,129.34,129.28,0.03]
[1744525577442,1.5005,129.35,129.28,0.03]
[1744525577649,14.02931162,129.31,129.28,0.03]
[1744525579377,14.02931162,129.31,129.28,7.7651]
[1744525580760,7.7315,129.34,129.28,7.7651]
[1744525580940,14.02931162,129.31,129.28,7.7651]
[1744525582065,14.02931162,129.32,129.28,7.7651]
[1744525582445,14.02931162,129.3,129.28,7.7651]
[1744525586573,7.7322,129.33,129.28,7.7651]
[1744525586574,14.02931162,129.29,129.28,7.7651]
[1744525589672,21.76381162,129.29,129.28,0.03]
[1744525589878,14.02931162,129.29,129.28,0.03]
[1744525591956,14.02931162,129.32,129.28,0.03]
[1744525592160,14.02931162,129.31,129.28,0.03]
[1744525592673,1.5215,129.33,129.28,0.03]
[1744525592846,14.02931162,129.31,129.28,0.03]
[1744525593048,14.02931162,129.32,129.28,0.03]
[1744525593769,27.8659,129.37,129.28,0.03]
[1744525593770,14.02931162,129.33,129.28,19.10613357]
[1744525593972,7.7306,129.36,129.28,19.10613357]
[1744525594166,14.02931162,129.33,129.28,19.10613357]
[1744525594356,14.02931162,129.34,129.29,14.02931162]
[1744525594556,14.02931162,129.36,129.31,14.02931162]
[1744525594762,14.02931162,129.36,129.32,14.7527]
[1744525595153,14.02931162,129.35,129.32,14.7527]
[1744525596479,14.02931162,129.36,129.32,14.7527]
[1744525597560,14.02931162,129.37,129.32,14.7527]
[1744525597760,14.02931162,129.36,129.32,14.7527]
[1744525598668,81.0,129.39,129.32,35.02351162]
[1744525598874,14.02931162,129.37,129.32,35.02351162]
[1744525600885,14.02931162,129.39,129.34,21.76081162]
[1744525601385,14.02931162,129.39,129.34,7.7315]
[1744525601682,14.02931162,129.38,129.34,7.7315]
[1744525602172,14.02931162,129.39,129.34,21.76081162]
[1744525603489,14.02931162,129.38,129.34,7.7315]
[1744525604592,14.02931162,129.39,129.34,21.76081162]
[1744525604991,14.02931162,129.38,129.34,7.7315]
[1744525608483,7.7267,129.42,129.34,7.7315]
[1744525608672,14.02931162,129.39,129.34,7.7315]
[1744525609180,14.02931162,129.39,129.34,27.0604]
[1744525609373,8.97091499,129.39,129.34,27.0604]
[1744525609566,1.5794,129.43,129.35,19.07613357]
[1744525609567,9.3058,129.43,129.35,19.07613357]
[1744525609766,8.97091499,129.4,129.35,19.07613357]
[1744525609967,8.97091499,129.41,129.36,1.574]
[1744525610280,8.97091499,129.42,129.37,7.06]
[1744525610782,8.97091499,129.42,129.38,7.7291]
[1744525611357,14.00983395,129.42,129.38,7.7291]
[1744525611794,14.00983395,129.42,129.38,27.052]
[1744525611962,14.00983395,129.43,129.38,27.052]
[1744525612574,0.063,129.46,129.42,0.14216157]
[1744525612875,0.063,129.46,129.42,65.86164438]
[1744525613258,0.063,129.46,129.44,18.79181043]
[1744525613474,0.063,129.46,129.44,0.28432314]
[1744525614190,0.063,129.46,129.45,19.07613357]
[1744525614379,0.063,129.46,129.45,33.08596752]
[1744525614687,0.063,129.46,129.45,40.81086752]
[1744525615366,0.0001,129.46,129.45,40.81086752]
[1744525618071,0.0001,129.46,129.45,52.80103357]
[1744525622300,0.0001,129.46,129.45,66.81086752]
[1744525622992,0.0001,129.46,129.45,52.80103357]
[1744525623192,0.0001,129.46,129.45,66.81086752]
[1744525623692,0.0001,129.46,129.45,52.80103357]
[1744525624301,0.0001,129.46,129.45,59.86103357]
[1744525625694,0.0001,129.46,129.45,73.87086752]
[1744525626281,0.0001,129.46,129.45,59.86103357]
[1744525627503,0.0001,129.48,129.46,20.60733357]
[1744525627679,0.063,129.5,129.49,26.0]
[1744525627997,0.063,129.5,129.49,40.00983395]
[1744525630102,0.063,129.5,129.49,47.73243395]
[1744525632695,0.0001,129.5,129.49,66.80856752]
[1744525635309,0.0001,129.5,129.49,72.96256152]
[1744525635800,0.0001,129.52,129.5,19.07613357]
[1744525636002,0.0001,129.53,129.52,20.69443357]
[1744525636195,0.0001,129.53,129.52,34.70426752]
[1744525637106,0.063,129.54,129.53,0.28432314]
[1744525637107,0.0001,129.54,129.53,0.28432314]
[1744525637309,0.0001,129.54,129.53,36.94057515]
[1744525637507,0.0001,129.54,129.53,33.08596752]
[1744525637701,0.063,129.57,129.54,18.79181043]
[1744525638011,0.0002,129.57,129.55,33.08596752]
[1744525638218,0.0002,129.57,129.56,21.16983395]
[1744525638601,0.0002,129.57,129.56,26.23613357]
[1744525638993,0.0002,129.57,129.56,33.95453357]
[1744525639614,14.01003395,129.57,129.55,7.7188]
[1744525639813,0.0002,129.57,129.55,7.7188]
[1744525640120,14.01003395,129.57,129.55,7.7188]
[1744525640312,0.0002,129.57,129.55,7.7188]
[1744525641416,0.0002,129.57,129.55,26.36844886]
[1744525642603,14.01003395,129.57,129.55,7.7188]
[1744525643415,0.0002,129.57,129.56,14.00983395]
[1744525643610,0.0002,129.57,129.56,33.08596752]
[1744525644791,0.0002,129.57,129.56,40.80436752]
[1744525653032,0.0002,129.57,129.56,40.52004438]
[1744525653214,0.0002,129.57,129.56,40.80436752]
[1744525654925,0.063,129.61,129.6,0.28432314]
[1744525655221,0.063,129.61,129.6,21.45415709]
[1744525656209,0.063,129.61,129.6,7.44432314]
[1744525656425,1.2305,129.64,129.61,18.79181043]
[1744525657030,1.2305,129.64,129.62,7.7148]
[1744525660930,14.00983395,129.66,129.62,7.7148]
[1744525662427,15.63703395,129.67,129.62,7.7148]
[1744525662628,14.00983395,129.66,129.62,7.7148]
[1744525662930,1.6272,129.67,129.63,14.00983395]
[1744525663432,1.6272,129.67,129.62,41.01173395]
[1744525663808,1.6272,129.67,129.63,14.00983395]
[1744525664210,6.4193,129.68,129.64,14.00983395]
[1744525664821,14.00983395,129.69,129.65,7.713]
[1744525665227,82.6246,129.73,129.65,34.0556]
[1744525665426,1.6246,129.73,129.66,33.08596752]
[1744525665631,14.00983395,129.71,129.66,33.08596752]
[1744525665935,14.00983395,129.7,129.66,19.07613357]
[1744525666434,14.00983395,129.69,129.65,14.773]
[1744525666815,14.00983395,129.7,129.65,14.773]
[1744525668039,14.00983395,129.7,129.65,28.78283395]
[1744525669341,14.00983395,129.7,129.65,23.70103374]
[1744525669342,8.92803374,129.7,129.65,23.70103374]
[1744525669939,8.92803374,129.66,129.62,7.06]
[1744525670121,8.92803374,129.63,129.61,7.7154]
[1744525670319,8.92803374,129.62,129.61,7.7154]
[1744525670620,8.92803374,129.63,129.61,7.7154]
[1744525671236,8.92803374,129.63,129.59,27.0082]
[1744525672439,7.7118,129.67,129.59,27.0082]
[1744525672617,8.92803374,129.63,129.59,27.0082]
[1744525673436,13.96415495,129.63,129.59,27.0082]
[1744525674548,13.96415495,129.64,129.59,40.97235495]
[1744525674718,13.96415495,129.64,129.59,27.0082]
[1744525675015,13.96415495,129.64,129.59,40.97235495]
[1744525677245,13.96415495,129.64,129.6,19.07613357]
[1744525677431,13.96415495,129.66,129.61,13.96415495]
[1744525678541,13.96415495,129.66,129.62,7.7148]
[1744525678928,13.96415495,129.65,129.62,7.7148]
[1744525682332,13.96415495,129.66,129.62,7.7148]
[1744525683343,13.96415495,129.65,129.62,7.7148]
[1744525683646,13.96415495,129.67,129.62,40.96605495]
[1744525684648,1.5143,129.68,129.62,40.96605495]
[1744525684857,0.03,129.69,129.63,13.96415495]
[1744525685150,0.03,129.69,129.64,13.96415495]
[1744525685151,13.99415495,129.69,129.64,13.96415495]
[1744525685751,13.99415495,129.69,129.65,7.713]
[1744525685947,13.96415495,129.68,129.65,7.713]
[1744525686153,13.99415495,129.69,129.65,7.713]
[1744525687049,0.03,129.69,129.65,21.67715495]
[1744525687351,0.03,129.69,129.68,13.96415495]
[1744525689152,0.03,129.69,129.68,40.75148852]
[1744525690131,0.0001,129.69,129.68,40.75148852]
[1744525690633,13.99415495,129.76,129.71,26.0]
[1744525690634,0.03,129.76,129.71,26.0]